fUSD/lending_fUSD_20260126
["ID","MTS","AMOUNT","RATE_DAILY","PERIOD"]
[403623499,1769425843798,-1086.0,0.0001704,2]
[403623500,1769425843807,-1086.0,0.0001704,2]
[403623501,1769425843816,-676.0,0.00017041,2]
[403623503,1769425843826,-484.73,0.00017041,2]
[403623505,1769425843834,-484.73,0.00017041,2]
[403623506,1769425843844,-484.73,0.00017041,2]
[403623507,1769425843854,-484.73,0.00017041,2]
[403623508,1769425843863,-4872.1,0.00017043,2]
[403623509,1769425843873,-560.38,0.00017057,2]
[403623510,1769425843882,-510.0,0.00017061,2]
[403623511,1769425843891,-676.0,0.00017095,2]
[403623512,1769425843901,-151.0,0.00017096,2]
[403623513,1769425843911,-151.0,0.00017099,2]
[403623514,1769425843921,-250.0,0.00017099,2]
[403623515,1769425843931,-2349.0,0.00017099,2]
[403623516,1769425843941,-250.0,0.00017099,2]
[403623517,1769425843952,-2500.0,0.00017099,2]
[403623518,1769425843962,-160.0,0.00017099,2]
[403623519,1769425843971,-250.0,0.00017099,2]
[403623520,1769425843980,-250.0,0.00017099,2]
[403623521,1769425843989,-250.0,0.00017099,2]
[403623522,1769425843998,-3000.0,0.00017099,2]
[403623523,1769425844007,-2500.0,0.00017099,2]
[403623524,1769425844017,-250.0,0.00017099,2]
[403623525,1769425844026,-250.0,0.00017099,2]
[403623526,1769425844036,-3000.0,0.00017099,2]
[403623527,1769425844045,-2500.0,0.00017099,2]
[403623528,1769425844054,-250.0,0.00017099,2]
[403623529,1769425844064,-250.0,0.00017099,2]
[403623530,1769425844073,-250.0,0.00017099,2]
[403623531,1769425844083,-2500.0,0.00017099,2]
[403623532,1769425844092,-3000.0,0.00017099,2]
[403623533,1769425844103,-250.0,0.00017099,2]
[403623534,1769425844112,-250.0,0.00017099,2]
[403623535,1769425844121,-250.0,0.00017099,2]
[403623536,1769425844130,-2500.0,0.00017099,2]
[403623537,1769425844140,-3000.0,0.00017099,2]
[403623538,1769425844149,-250.0,0.00017099,2]
[403623539,1769425844160,-250.0,0.00017099,2]
[403623540,1769425844169,-250.0,0.00017099,2]
[403623541,1769425844178,-2500.0,0.00017099,2]
[403623542,1769425844187,-3000.0,0.00017099,2]
[403623543,1769425844197,-250.0,0.00017099,2]
[403623544,1769425844206,-250.0,0.00017099,2]
[403623545,1769425844215,-250.0,0.00017099,2]
[403623546,1769425844225,-2500.0,0.00017099,2]
[403623547,1769425844234,-3000.0,0.00017099,2]
[403623548,1769425844244,-250.0,0.00017099,2]
[403623549,1769425844254,-250.0,0.00017099,2]
[403623550,1769425844263,-250.0,0.00017099,2]
[403623551,1769425844273,-2500.0,0.00017099,2]
[403623552,1769425844282,-3000.0,0.00017099,2]
[403623553,1769425844291,-250.0,0.00017099,2]
[403623554,1769425844301,-250.0,0.00017099,2]
[403623555,1769425844310,-250.0,0.00017099,2]
[403623556,1769425844321,-2500.0,0.00017099,2]
[403623557,1769425844334,-3000.0,0.00017099,2]
[403623558,1769425844344,-250.0,0.00017099,2]
[403623559,1769425844353,-250.0,0.00017099,2]
[403623560,1769425844363,-250.0,0.00017099,2]
[403623561,1769425844373,-2500.0,0.00017099,2]
[403623562,1769425844383,-3000.0,0.00017099,2]
[403623563,1769425844392,-250.0,0.00017099,2]
[403623564,1769425844402,-2500.0,0.00017099,2]
[403623565,1769425844411,-250.0,0.00017099,2]
[403623566,1769425844420,-3000.0,0.00017099,2]
[403623567,1769425844430,-174.61919141,0.00017099,2]
[403623568,1769425844440,-250.0,0.00017099,2]
[403623569,1769425844449,-250.0,0.00017099,2]
[403623570,1769425844458,-3000.0,0.00017099,2]
[403623571,1769425844467,-250.0,0.00017099,2]
[403623572,1769425844476,-209.40437684,0.00017099,2]
[403623573,1769425844486,-9552.16786547,0.00017099,2]
[403623574,1769425844495,-322.6107,0.00017099,2]
[403623575,1769425844504,-743.50770149,0.00017099,2]
[403623576,1769425844514,-220.0,0.00017099,2]
[403623577,1769425844524,-220.0,0.00017099,2]
[403623578,1769425844533,-209.40437684,0.00017099,2]
[403623579,1769425844544,-344.90178664,0.00017099,2]
[403623580,1769425844554,-721.12765535,0.00017099,2]
[403623581,1769425844564,-250.0,0.00017099,2]
[403623582,1769425844575,-854.2589148,0.00017099,2]
[403623583,1769425844584,-250.0,0.00017099,2]
[403623584,1769425844595,-250.0,0.00017099,2]
[403623585,1769425844604,-250.0,0.00017099,2]
[403623586,1769425844613,-250.0,0.00017099,2]
[403623587,1769425844622,-250.0,0.00017099,2]
[403623588,1769425844631,-250.0,0.00017099,2]
[403623589,1769425844640,-250.0,0.00017099,2]
[403623590,1769425844649,-250.0,0.00017099,2]
[403623591,1769425844658,-250.0,0.00017099,2]
[403623592,1769425844667,-250.0,0.00017099,2]
[403623593,1769425844676,-250.0,0.00017099,2]
[403623594,1769425844685,-250.0,0.00017099,2]
[403623595,1769425844694,-500.0,0.00017099,2]
[403623596,1769425844703,-250.0,0.00017099,2]
[403623597,1769425844712,-250.0,0.00017099,2]
[403623598,1769425844722,-250.0,0.00017099,2]
[403623599,1769425844730,-500.0,0.00017099,2]
[403623600,1769425844739,-250.0,0.00017099,2]
[403623601,1769425844748,-250.0,0.00017099,2]
[403623602,1769425844758,-500.0,0.00017099,2]
[403623603,1769425844767,-250.0,0.00017099,2]
[403623604,1769425844777,-250.0,0.00017099,2]
[403623605,1769425844786,-9000.0,0.00017099,2]
[403623606,1769425844796,-250.0,0.00017099,2]
[403623607,1769425844806,-500.0,0.00017099,2]
[403623608,1769425844815,-250.0,0.00017099,2]
[403623609,1769425844824,-250.0,0.00017099,2]
[403623610,1769425844833,-250.0,0.00017099,2]
[403623611,1769425844843,-500.0,0.00017099,2]
[403623612,1769425844852,-250.0,0.00017099,2]
[403623613,1769425844861,-250.0,0.00017099,2]
[403623614,1769425844871,-250.0,0.00017099,2]
[403623615,1769425844880,-500.0,0.00017099,2]
[403623616,1769425844889,-578.20924308,0.00017099,2]
[403623617,1769425844899,-250.0,0.00017099,2]
[403623618,1769425844908,-250.0,0.00017099,2]
[403623619,1769425844917,-250.0,0.00017099,2]
[403623620,1769425844928,-500.0,0.00017099,2]
[403623621,1769425844938,-250.0,0.00017099,2]
[403623622,1769425844947,-250.0,0.00017099,2]
[403623623,1769425844956,-250.0,0.00017099,2]
[403623624,1769425844965,-500.0,0.00017099,2]
[403623625,1769425844975,-250.0,0.00017099,2]
[403623626,1769425844984,-6476.69539013,0.00017099,2]
[403623627,1769425844993,-359.04919981,0.00017099,2]
[403623628,1769425845003,-250.0,0.00017099,2]
[403623629,1769425845012,-500.0,0.00017099,2]
[403623630,1769425845021,-250.0,0.00017099,2]
[403623631,1769425845031,-209.40437684,0.00017099,2]
[403623632,1769425845040,-250.0,0.00017099,2]
[403623633,1769425845049,-500.0,0.00017099,2]
[403623634,1769425845059,-250.0,0.00017099,2]
[403623635,1769425845068,-1000.0,0.00017099,2]
[403623636,1769425845077,-500.0,0.00017099,2]
[403623637,1769425845086,-250.0,0.00017099,2]
[403623638,1769425845095,-1000.0,0.00017099,2]
[403623639,1769425845105,-250.0,0.00017099,2]
[403623640,1769425845114,-1000.0,0.00017099,2]
[403623641,1769425845123,-1000.0,0.00017099,2]
[403623642,1769425845133,-1000.0,0.00017099,2]
[403623643,1769425845142,-1000.0,0.00017099,2]
[403623644,1769425845151,-1000.0,0.00017099,2]
[403623645,1769425845161,-1000.0,0.00017099,2]
[403623646,1769425845170,-1000.0,0.00017099,2]
[403623647,1769425845179,-1000.0,0.00017099,2]
[403623648,1769425845187,-1000.0,0.00017099,2]
[403623649,1769425845197,-151.0,0.00017099,2]
[403623650,1769425845206,-156.587,0.00017099,2]
[403623651,1769425845218,-162.380719,0.00017099,2]
[403623652,1769425845227,-156.88755266,0.00017099,2]
[403623653,1769425845237,-250.0,0.00017099,2]
[403623654,1769425845247,-151.0,0.00017099,2]
[403623655,1769425845256,-250.0,0.00017099,2]
[403623656,1769425845265,-250.0,0.00017099,2]
[403623657,1769425845274,-250.0,0.00017099,2]
[403623658,1769425845283,-250.0,0.00017099,2]
[403623659,1769425845292,-250.0,0.00017099,2]
[403623660,1769425845301,-250.0,0.00017099,2]
[403623661,1769425845311,-250.0,0.00017099,2]
[403623662,1769425845320,-250.0,0.00017099,2]
[403623663,1769425845330,-250.0,0.00017099,2]
[403623664,1769425845342,-250.0,0.00017099,2]
[403623665,1769425845351,-151.0,0.00017099,2]
[403623666,1769425845360,-500.0,0.000171,2]
[403623667,1769425845370,-158.53684129,0.00017107,2]
[403623668,1769425845380,-12018.77411767,0.00017108,2]
[403623669,1769425845390,-15756.00349717,0.00017108,2]
[403623670,1769425845399,-1334.8371866,0.00017137,2]
[403623671,1769425845411,-4872.1,0.00017149,2]
[403623672,1769425845420,-401.49820375,0.0001715,2]
[403623673,1769425845429,-500.0,0.0001715,2]
[403623674,1769425845439,-500.0,0.0001715,2]
[403623675,1769425845448,-500.0,0.0001715,2]
[403623676,1769425845458,-500.0,0.0001715,2]
[403623677,1769425845469,-500.0,0.0001715,2]
[403623678,1769425845480,-500.0,0.0001715,2]
[403623679,1769425845490,-500.0,0.0001715,2]
[403623680,1769425845499,-500.0,0.0001715,2]
[403623681,1769425845510,-500.0,0.0001715,2]
[403623682,1769425845519,-508.13019702,0.0001715,2]
[403623683,1769425845528,-500.0,0.0001715,2]
[403623684,1769425845536,-500.0,0.0001715,2]
[403623685,1769425845545,-500.0,0.0001715,2]
[403623686,1769425845554,-500.0,0.0001715,2]
[403623687,1769425845564,-500.0,0.0001715,2]
[403623688,1769425845574,-620.90734351,0.0001715,2]
[403623689,1769425845583,-683.85199828,0.0001715,2]
[403623690,1769425845592,-9905.5980765,0.00017154,2]
[403623691,1769425845602,-9000.0,0.00017154,2]
[403623692,1769425845611,-867.98,0.00017167,2]
[403623693,1769425845622,-558.94,0.00017178,2]
[403623694,1769425845631,-1231.6,0.00017178,2]
[403623695,1769425845640,-150.0,0.00017178,2]
[403623696,1769425845649,-150.0,0.00017178,2]
[403623697,1769425845658,-176.73,0.00017178,2]
[403623698,1769425845667,-229.88,0.00017178,2]
[403623699,1769425845677,-172.23,0.00017178,2]
[403623700,1769425845686,-468.76,0.00017178,2]
[403623701,1769425845696,-179.98,0.00017178,2]
[403623702,1769425845705,-558.94,0.00017178,2]
[403623703,1769425845715,-468.76,0.00017178,2]
[403623704,1769425845724,-179.98,0.00017178,2]
[403623705,1769425845734,-150.0,0.00017178,2]
[403623706,1769425845744,-468.76,0.00017178,2]
[403623707,1769425845755,-179.98,0.00017178,2]
[403623708,1769425845764,-468.76,0.00017178,2]
[403623709,1769425845773,-179.98,0.00017178,2]
[403623710,1769425845783,-150.0,0.00017178,2]
[403623711,1769425845793,-468.76,0.00017178,2]
[403623712,1769425845802,-179.98,0.00017178,2]
[403623713,1769425845812,-179.88,0.00017178,2]
[403623714,1769425845822,-150.0,0.00017178,2]
[403623715,1769425845832,-150.0,0.00017178,2]
[403623716,1769425845842,-324.49,0.00017178,2]
[403623717,1769425845851,-358.04,0.00017178,2]
[403623718,1769425845860,-150.0,0.00017178,2]
[403623719,1769425845871,-468.76,0.00017178,2]
[403623720,1769425845880,-150.0,0.00017178,2]
[403623721,1769425845893,-359.96,0.00017178,2]
[403623722,1769425845903,-150.0,0.00017178,2]
[403623723,1769425845914,-558.94,0.00017178,2]
[403623724,1769425845924,-1231.6,0.00017178,2]
[403623725,1769425845934,-172.23,0.00017178,2]
[403623726,1769425845943,-150.0,0.00017178,2]
[403623727,1769425845953,-468.76,0.00017178,2]
[403623728,1769425845962,-150.0,0.00017178,2]
[403623729,1769425845971,-5700.0,0.000172,6]
[403623730,1769425845981,-200.0,0.00017206,2]
[403623731,1769425845990,-10272.10520533,0.00017209,2]
[403623732,1769425845999,-9000.0,0.00017209,2]
[403623733,1769425846009,-4872.1,0.00017255,2]
[403623734,1769425846018,-185.91,0.0001726,2]
[403623735,1769425846028,-10652.17309792,0.00017264,2]
[403623736,1769425846038,-9000.0,0.00017264,2]
[403623737,1769425846048,-282.12,0.00017274,2]
[403623738,1769425846057,-1207.0,0.00017276,2]
[403623740,1769425846066,-166.84,0.00017289,2]
[403623742,1769425846076,-968.71,0.00017295,2]
[403623743,1769425846085,-779.07916324,0.000173,2]
[403623744,1769425846095,-7100.0,0.000173,6]
[403623745,1769425846104,-1207.0,0.00017303,2]
[403623746,1769425846114,-12018.77411767,0.00017306,2]
[403623747,1769425846123,-15756.00349717,0.00017306,2]
[403623748,1769425846132,-5888.0,0.00017314,2]
[403623749,1769425846142,-176.72,0.00017315,2]
[403623750,1769425846151,-11189.24660585,0.00017319,2]
[403623751,1769425846160,-604.79,0.00017323,2]
[403623752,1769425846170,-560.38,0.00017331,2]
[403623753,1769425846179,-163.0,0.0001736,2]
[403623754,1769425846189,-837.0,0.0001736,2]
[403623755,1769425846199,-163.0,0.0001736,2]
[403623756,1769425846208,-163.0,0.0001736,2]
[403623757,1769425846218,-1086.0,0.0001736,2]
[403623758,1769425846227,-1086.0,0.0001736,2]
[403623759,1769425846236,-1086.0,0.0001736,2]
[403623760,1769425846245,-1086.0,0.0001736,2]
[403623761,1769425846254,-1086.0,0.0001736,2]
[403623762,1769425846264,-1086.0,0.0001736,2]
[403623763,1769425846273,-1086.0,0.0001736,2]
[403623764,1769425846282,-1086.0,0.0001736,2]
[403623765,1769425846292,-4872.1,0.00017362,2]
[403623766,1769425846301,-339.81747306,0.0001737,2]
[403623767,1769425846311,-1334.8371866,0.00017391,2]
[403623768,1769425846320,-152.21,0.000174,2]
[403623769,1769425846332,-152.21,0.000174,2]
[403623770,1769425846343,-152.21,0.000174,2]
[403623771,1769425846352,-152.21,0.000174,2]
[403623772,1769425846361,-1400.0,0.000174,6]
[403623773,1769425846371,-1207.0,0.00017413,2]
[403623774,1769425846594,-200.0,0.0001742,2]
[403623775,1769425846604,-500.0,0.00017431,2]
[403623776,1769425846614,-500.0,0.00017431,2]
[403623777,1769425846624,-500.0,0.00017431,2]
[403623778,1769425846634,-500.0,0.00017431,2]
[403623779,1769425846643,-150.0,0.00017431,2]
[403623780,1769425846653,-1000.0,0.00017432,2]
[403623781,1769425846663,-1000.0,0.00017432,2]
[403623782,1769425846672,-1000.0,0.00017432,2]
[403623783,1769425846682,-500.89949552,0.00017432,2]
[403623784,1769425846691,-1000.0,0.00017432,2]
[403623785,1769425846700,-501.44171962,0.00017432,2]
[403623786,1769425846710,-1000.0,0.00017432,2]
[403623787,1769425846719,-1000.0,0.00017432,2]
[403623788,1769425846728,-501.02318751,0.00017432,2]
[403623789,1769425846738,-1000.0,0.00017432,2]
[403623790,1769425846747,-1000.0,0.00017432,2]
[403623791,1769425846757,-501.16065005,0.00017432,2]
[403623792,1769425846766,-500.88310046,0.00017432,2]
[403623793,1769425846777,-1000.0,0.00017432,2]
[403623794,1769425846786,-1000.0,0.00017432,2]
[403623795,1769425846795,-1000.0,0.00017432,2]
[403623796,1769425846804,-1000.0,0.00017432,2]
[403623797,1769425846814,-1000.0,0.00017432,2]
[403623798,1769425846823,-1002.64656649,0.00017432,2]
[403623799,1769425846832,-906.59218179,0.00017432,2]
[403623800,1769425846842,-1000.0,0.00017432,2]
[403623801,1769425846851,-1000.0,0.00017432,2]
[403623802,1769425846860,-1000.0,0.00017432,2]
[403623803,1769425846870,-867.98,0.00017441,2]
[403623804,1769425846879,-672.97689156,0.0001745,2]
[403623805,1769425846888,-4872.1,0.00017468,2]
[403623806,1769425846897,-20050.25542141,0.0001748,2]
[403623807,1769425846907,-500.0,0.000175,2]
[403623808,1769425846917,-1400.0,0.000175,6]
[403623809,1769425846926,-12018.77411767,0.00017504,2]
[403623811,1769425846935,-15756.00349717,0.00017504,2]
[403623812,1769425846945,-1207.0,0.00017511,2]
[403623813,1769425846955,-1600.0,0.00017534,2]
[403623814,1769425846964,-753.04363975,0.00017547,2]
[403623815,1769425846974,-818.38874187,0.00017549,2]
[403623816,1769425846984,-378.38431742,0.00017549,2]
[403623817,1769425846994,-184.44067477,0.00017549,2]
[403623818,1769425847003,-3254.62917349,0.00017549,2]
[403623819,1769425847013,-10000.0,0.00017558,2]
[403623820,1769425847023,-207.53,0.00017558,2]
[403623821,1769425847033,-968.71,0.00017569,2]
[403623822,1769425847043,-4872.1,0.00017575,2]
[403623823,1769425847053,-5888.0,0.00017579,2]
[403623824,1769425847062,-779.07916324,0.000176,2]
[403623825,1769425847072,-1400.0,0.000176,6]
[403623826,1769425847082,-560.38,0.00017605,2]
[403623827,1769425847092,-500.0,0.00017612,2]
[403623828,1769425847101,-613.0,0.00017636,2]
[403623829,1769425847111,-282.12,0.00017637,2]
[403623830,1769425847121,-4887.30379414,0.0001764,2]
[403623831,1769425847130,-1334.8371866,0.00017646,2]
[403623832,1769425847139,-151.0,0.00017647,2]
[403623833,1769425847148,-181.08010149,0.00017647,2]
[403623834,1769425847158,-209.40437684,0.00017647,2]
[403623835,1769425847168,-743.50770149,0.00017647,2]
[403623836,1769425847178,-885.86649465,0.00017647,2]
[403623837,1769425847188,-179.77886385,0.00017647,2]
[403623838,1769425847199,-151.0,0.00017647,2]
[403623839,1769425847208,-166.84,0.00017658,2]
[403623840,1769425847217,-1207.0,0.00017664,2]
[403623841,1769425847227,-1086.0,0.0001768,2]
[403623842,1769425847236,-1086.0,0.0001768,2]
[403623843,1769425847246,-1086.0,0.0001768,2]
[403623844,1769425847255,-1086.0,0.0001768,2]
[403623845,1769425847265,-1086.0,0.0001768,2]
[403623846,1769425847274,-1086.0,0.0001768,2]
[403623847,1769425847284,-1092.0,0.0001768,2]
[403623848,1769425847295,-4872.1,0.00017681,2]
[403623849,1769425847304,-200.0,0.00017688,2]
[403623850,1769425847313,-176.72,0.00017698,2]
[403623851,1769425847323,-201.23255829,0.00017698,2]
[403623852,1769425847335,-1500.0,0.000177,2]
[403623853,1769425847344,-1400.0,0.000177,6]
[403623854,1769425847354,-12018.77411767,0.00017702,2]
[403623855,1769425847363,-15756.00349717,0.00017702,2]
[403623856,1769425847373,-277.537,0.00017706,2]
[403623857,1769425847382,-228.485,0.00017706,2]
[403623858,1769425847391,-167.825,0.00017706,2]
[403623859,1769425847400,-158.376,0.00017706,2]
[403623860,1769425847412,-199.072,0.00017706,2]
[403623861,1769425847421,-150.0,0.00017706,2]
[403623862,1769425847431,-150.765,0.00017706,2]
[403623863,1769425847440,-151.0,0.00017706,2]
[403623864,1769425847450,-162.08,0.00017706,2]
[403623865,1769425847460,-1420.19,0.00017706,2]
[403623866,1769425847470,-625.132,0.00017706,2]
[403623867,1769425847479,-3477.0,0.00017706,2]
[403623868,1769425847489,-1335.515,0.00017706,2]
[403623869,1769425847498,-1269.0,0.00017706,2]
[403623870,1769425847507,-308.478,0.00017706,2]
[403623871,1769425847516,-1204.0,0.00017706,2]
[403623872,1769425847525,-916.0,0.00017706,2]
[403623873,1769425847535,-567.0,0.00017706,2]
[403623874,1769425847544,-4831.0,0.00017706,2]
[403623875,1769425847553,-300.234,0.00017706,2]
[403623876,1769425847562,-2455.897,0.00017706,2]
[403623877,1769425847571,-867.98,0.00017715,2]
[403623878,1769425847581,-200.0,0.00017719,2]
[403623879,1769425847591,-753.04363973,0.00017724,2]
[403623880,1769425847600,-500.0,0.00017785,2]
[403623881,1769425847610,-4872.1,0.00017787,2]
[403623882,1769425847619,-707.04345843,0.00017791,2]
[403623883,1769425847628,-5888.0,0.00017795,2]
[403623884,1769425847638,-1500.0,0.000178,2]
[403623885,1769425847648,-1846.0,0.000178,6]
[403623886,1769425847658,-500.0,0.00017808,2]
[403623887,1769425847668,-707.04345838,0.00017813,2]
[403623888,1769425847677,-2602.30488931,0.0001782,2]
[403623889,1769425847687,-25000.0,0.0001783,3]
[403623890,1769425847696,-6719.06641575,0.0001783,2]
[403623891,1769425847706,-707.04345838,0.00017835,2]
[403623892,1769425847715,-25000.0,0.00017838,3]
[403623893,1769425847724,-968.71,0.00017843,2]
[403623894,1769425847734,-500.0,0.00017846,2]
[403623895,1769425847742,-500.0,0.00017846,2]
[403623896,1769425847751,-500.0,0.00017846,2]
[403623897,1769425847761,-25000.0,0.00017847,3]
[403623898,1769425847771,-200.0,0.00017855,2]
[403623899,1769425847780,-200.0,0.00017856,2]
[403623900,1769425847790,-25000.0,0.00017856,3]
[403623901,1769425847799,-200.0,0.00017856,2]
[403623902,1769425847809,-200.0,0.00017856,2]
[403623903,1769425847818,-707.04345838,0.00017856,2]
[403623904,1769425847831,-500.0,0.00017863,2]
[403623905,1769425847839,-1198.0,0.00017863,2]
[403623906,1769425847849,-500.0,0.00017864,2]
[403623907,1769425847858,-25000.0,0.00017865,3]
[403623908,1769425847867,-896.78368784,0.0001787,2]
[403623909,1769425847877,-1582.03272451,0.0001787,2]
[403623910,1769425847886,-2366.62634071,0.0001787,2]
[403623911,1769425847895,-3202.1253,0.0001787,2]
[403623912,1769425847905,-25000.0,0.00017874,3]
[403623913,1769425847914,-5888.0,0.00017877,2]
[403623914,1769425847924,-707.04345838,0.00017878,2]
[403623915,1769425847933,-560.38,0.00017879,2]
[403623916,1769425847943,-25000.0,0.00017882,3]
[403623917,1769425847954,-25000.0,0.00017891,3]
[403623918,1769425847965,-4872.1,0.00017894,2]
[403623919,1769425847975,-500.0,0.00017899,2]
[403623920,1769425847984,-500.0,0.00017899,2]
[403623921,1769425847993,-500.0,0.00017899,2]
[403623922,1769425848003,-439.15997482,0.00017899,2]
[403623923,1769425848013,-439.15997482,0.000179,2]
[403623924,1769425848023,-25000.0,0.000179,3]
[403623925,1769425848034,-250.0,0.000179,3]
[403623926,1769425848044,-779.07916324,0.000179,2]
[403623927,1769425848054,-672.97689156,0.000179,2]
[403623928,1769425848063,-12018.77411767,0.000179,2]
[403623929,1769425848072,-753.04363973,0.000179,2]
[403623930,1769425848082,-155.97251724,0.000179,2]
[403623931,1769425848092,-155.97251722,0.000179,2]
[403623932,1769425848101,-155.97251722,0.000179,2]
[403623933,1769425848111,-155.97251722,0.000179,2]
[403623934,1769425848120,-155.97251722,0.000179,2]
[403623935,1769425848130,-155.97251722,0.000179,2]
[403623936,1769425848139,-155.97251722,0.000179,2]
[403623937,1769425848149,-1500.0,0.000179,2]
[403623938,1769425848159,-15756.00349717,0.000179,2]
[403623939,1769425848168,-1334.8371866,0.000179,2]
[403623940,1769425848177,-707.04345838,0.000179,2]
[403623941,1769425848187,-12278.0,0.000179,2]
[403623942,1769425848196,-500.0,0.00017918,2]
[403623943,1769425848206,-1207.0,0.00017934,2]
[403623944,1769425848215,-400.0,0.0001797,2]
[403623945,1769425848224,-400.0,0.0001797,2]
[403623946,1769425848234,-400.0,0.0001797,2]
[403623947,1769425848243,-704.68300704,0.0001797,2]
[403623948,1769425848262,-2000.0,0.00017972,2]
[403623949,1769425848273,-1000.0,0.00017972,2]
[403623950,1769425848283,-500.0,0.00017972,2]
[403623951,1769425848294,-151.0,0.00017973,2]
[403623952,1769425848304,-151.0,0.00017973,2]
[403623953,1769425848314,-151.0,0.00017973,2]
[403623954,1769425848325,-151.0,0.00017973,2]
[403623955,1769425848339,-151.0,0.00017973,2]
[403623956,1769425848349,-151.0,0.00017973,2]
[403623957,1769425848359,-151.0,0.00017973,2]
[403623958,1769425848370,-151.0,0.00017973,2]
[403623959,1769425848382,-188.07834286,0.00017973,2]
[403623960,1769425848393,-6962.0,0.00017973,2]
[403623961,1769425848405,-500.0,0.00017973,2]
[403623962,1769425848416,-150.0,0.00017973,2]
[403623963,1769425848427,-151.0,0.00017977,2]
[403623964,1769425848438,-1043.91129536,0.0001798,2]
[403623965,1769425848448,-1038.06736554,0.0001798,2]
[403623966,1769425848458,-656.61150819,0.0001798,2]
[403623967,1769425848468,-752.73340052,0.0001798,2]
[403623968,1769425848478,-1017.33172074,0.0001798,2]
[403623969,1769425848489,-1000.0,0.0001798,2]
[403623970,1769425848499,-1500.0,0.0001798,2]
[403623971,1769425848509,-1500.0,0.0001798,2]
[403623972,1769425848519,-1500.0,0.0001798,2]
[403623973,1769425848530,-1500.0,0.0001798,2]
[403623974,1769425848540,-1500.0,0.0001798,2]
[403623975,1769425848551,-1500.0,0.0001798,2]
[403623976,1769425848562,-1500.0,0.0001798,2]
[403623977,1769425848571,-1500.0,0.0001798,2]
[403623978,1769425848581,-1500.0,0.0001798,2]
[403623979,1769425848590,-497.10035814,0.0001798,2]
[403623980,1769425848601,-5800.0,0.00017982,2]
[403623981,1769425848617,-500.0,0.00017982,2]
[403623982,1769425848628,-393.8,0.00017989,2]
[403623983,1769425848640,-867.98,0.00017989,2]
[403623984,1769425848651,-5800.0,0.0001799,2]
[403623985,1769425848662,-382.57188636,0.0001799,2]
[403623986,1769425848672,-382.57188636,0.0001799,2]
[403623987,1769425848682,-500.0,0.00017992,2]
[403623988,1769425848692,-500.0,0.00017992,2]
[403623989,1769425848702,-500.0,0.00017992,2]
[403623990,1769425848712,-500.0,0.00017992,2]
[403623991,1769425848722,-500.0,0.00017992,2]
[403623992,1769425848731,-200.0,0.00017992,2]
[403623993,1769425848741,-151.0,0.00017996,2]
[403623994,1769425848750,-246.13924238,0.00017998,2]
[403623995,1769425848760,-500.0,0.00017998,2]
[403623996,1769425848771,-500.0,0.00017998,2]
[403623997,1769425848780,-500.0,0.00017998,2]
[403623998,1769425848789,-500.0,0.00017998,2]
[403623999,1769425848799,-500.0,0.00017998,2]
[403624000,1769425848812,-345.82799971,0.00017998,2]
[403624001,1769425848822,-500.0,0.00017998,2]
[403624002,1769425848832,-500.0,0.00017998,2]
[403624003,1769425848842,-287.69959162,0.00017998,2]